bitfinex-derivatives/quotes_SOLF0:USTF0_20250530
["timestamp","ask_amount","ask_price","bid_price","bid_amount"]
[1748602942209,6.1057,163.74,163.72,0.04106636]
[1748602942511,0.03883683,163.76,163.72,0.04106636]
[1748602943312,6.106,163.73,163.72,0.04106636]
[1748602944114,6.1057,163.74,163.72,0.04106636]
[1748602945721,0.03883683,163.76,163.72,0.04106636]
[1748602946716,31.36,163.75,163.72,0.04106636]
[1748602946921,6.106,163.73,163.72,0.04106636]
[1748602953919,31.36,163.75,163.64,2.0661]
[1748602953920,31.36,163.75,163.66,6.1084]
[1748602954119,6.70578279,163.73,163.64,2.0661]
[1748602954421,6.1081,163.68,163.65,6.1088]
[1748602954827,0.04693375,163.68,163.65,0.04590457]
[1748602955027,0.04693375,163.68,163.66,6.1085]
[1748602955224,0.04693375,163.68,163.65,0.04590457]
[1748602956021,0.04693375,163.68,163.67,6.1082]
[1748602956526,37.485,163.76,163.73,6.1058]
[1748602956725,31.38,163.76,163.68,66.0956]
[1748602957425,0.04457123,163.74,163.7,0.04336717]
[1748602957724,0.04457123,163.74,163.73,6.106]
[1748602958627,0.04457123,163.74,163.72,6.1062]
[1748602959325,0.04457123,163.74,163.73,6.106]
[1748602962432,0.04457123,163.74,163.72,6.1061]
[1748602962632,0.04457123,163.74,163.7,0.04336717]
[1748602963333,0.04457123,163.74,163.72,6.106]
[1748602964328,6.15027123,163.74,163.71,6.1066]
[1748602965133,6.15027123,163.74,163.7,6.15026717]
[1748602965134,6.1061,163.73,163.7,6.15026717]
[1748602965334,6.1061,163.73,163.7,0.04336717]
[1748602965932,0.04457123,163.74,163.7,0.04336717]
[1748602966527,6.1067,163.71,163.7,0.04336717]
[1748602966727,31.3,163.71,163.62,37.4154]
[1748602967735,0.03922893,163.68,163.65,0.03956673]
[1748602968235,6.14712893,163.68,163.65,6.14826673]
[1748602969934,6.14712893,163.68,163.66,6.1086]
[1748602970134,0.03922893,163.68,163.66,6.1086]
[1748602970730,6.14712893,163.68,163.65,6.14836673]
[1748602975745,6.14712893,163.68,163.66,6.1085]
[1748602977144,6.14712893,163.68,163.65,6.14836673]
[1748602977644,0.03922893,163.68,163.66,6.1084]
[1748602977845,0.03922893,163.68,163.65,0.03956673]
[1748602978345,0.03922893,163.68,163.66,6.1086]
[1748602979144,6.14712893,163.68,163.66,6.1086]
[1748602979846,6.14712893,163.68,163.65,6.14836673]
[1748602980243,0.03922893,163.68,163.65,0.03956673]
[1748602982050,0.03922893,163.68,163.66,6.1083]
[1748602982746,0.03922893,163.68,163.67,6.1082]
[1748602982950,31.32,163.74,163.65,0.03956673]
[1748602983252,6.1062,163.73,163.71,6.1066]
[1748602983548,31.32,163.74,163.65,62.0]
[1748602983753,37.4246,163.77,163.67,38.02578279]
[1748602984052,0.04686155,163.74,163.7,6.75143346]
[1748602984351,0.04686155,163.74,163.73,6.106]
[1748602985249,0.04686155,163.74,163.72,6.1062]
[1748602985449,0.04686155,163.74,163.71,33.4008]
[1748602985857,6.1045,163.77,163.72,6.1063]
[1748602986753,6.1042,163.78,163.73,6.106]
[1748602986955,0.03824901,163.77,163.74,0.04298035]
[1748602987352,6.1051,163.76,163.74,0.04298035]
[1748602989155,6.1052,163.75,163.74,0.04298035]
[1748602990260,6.105,163.76,163.74,0.04298035]
[1748602990952,0.03824901,163.77,163.74,0.04298035]
[1748602991357,6.14294901,163.77,163.74,0.04298035]
[1748602991849,0.03824901,163.77,163.74,6.14848035]
[1748602992555,0.03824901,163.77,163.74,0.04298035]
[1748602993462,0.03824901,163.77,163.74,119.20298035]
[1748602993758,31.18,163.83,163.75,31.18]
[1748602993952,6.1035,163.8,163.76,6.1045]
[1748602994459,31.18,163.83,163.75,33.301]
[1748602994654,31.18,163.83,163.77,0.04386891]
[1748602995164,6.1032,163.81,163.77,6.14796891]
[1748602995859,6.1033,163.8,163.77,6.14796891]
[1748602996257,31.18,163.83,163.77,6.14796891]
[1748602996459,31.18,163.83,163.77,0.04386891]
[1748602997359,6.1032,163.81,163.77,0.04386891]
[1748602997554,31.18,163.83,163.77,0.04386891]
[1748602997761,6.1033,163.8,163.77,0.04386891]
[1748602998056,31.18,163.83,163.77,0.04386891]
[1748602999458,6.104,163.78,163.77,0.04386891]
[1748603000257,6.1052,163.75,163.72,33.2711]
[1748603000454,31.18,163.79,163.72,39.3773]
[1748603000650,31.18,163.79,163.72,2.0911]
[1748603000851,6.1053,163.75,163.72,2.0911]
[1748603001049,31.18,163.79,163.71,2.0808]
[1748603001251,6.1055,163.74,163.73,0.04031631]
[1748603013664,6.1071,163.7,163.66,31.18]
[1748603014464,6.1071,163.7,163.66,6.1081]
[1748603014663,6.1071,163.7,163.66,6.15377743]
[1748603014964,6.1071,163.7,163.67,6.1077]
[1748603014965,0.0392346,163.7,163.67,6.1077]
[1748603015869,6.1460346,163.7,163.66,6.15377743]
[1748603016063,0.0392346,163.7,163.66,0.04567743]
[1748603016664,0.0392346,163.7,163.67,62.0]
[1748603016963,0.0392346,163.7,163.69,6.1072]
[1748603018369,31.18,163.78,163.67,93.18]
[1748603018569,31.18,163.78,163.68,6.70578279]
[1748603018766,6.1048,163.76,163.68,6.70578279]
[1748603019372,6.1048,163.76,163.7,0.0388095]
[1748603019373,0.04258019,163.74,163.7,0.0388095]
[1748603019572,0.04258019,163.74,163.72,6.106]
[1748603020873,0.04258019,163.74,163.73,6.1057]
[1748603021075,0.04258019,163.74,163.7,0.0388095]
[1748603021473,0.04258019,163.74,163.72,6.1059]
[1748603021972,0.04258019,163.74,163.7,0.0388095]
[1748603022577,0.04258019,163.74,163.71,6.1062]
[1748603022774,0.04258019,163.74,163.7,0.0388095]
[1748603022974,0.04258019,163.74,163.72,6.106]
[1748603023276,0.04258019,163.74,163.7,0.0388095]
[1748603024077,0.04258019,163.74,163.72,6.1059]
[1748603026681,0.04258019,163.74,163.71,6.1063]
[1748603026977,31.22258019,163.74,163.7,0.0388095]
[1748603027282,35.45998019,163.74,163.7,0.0388095]
[1748603027474,42.16576298,163.74,163.64,31.18]
[1748603027674,42.16576298,163.74,163.61,150.3]
[1748603027675,1.9954,163.73,163.61,150.3]
[1748603027976,6.1078,163.68,163.61,150.3]
[1748603028184,31.18,163.7,163.61,150.3]
[1748603028482,0.0450655,163.67,163.64,6.15038218]
[1748603029782,0.0450655,163.67,163.64,0.04158218]
[1748603030376,0.0450655,163.67,163.66,6.1083]
[1748603036775,0.0450655,163.67,163.64,0.04158218]
[1748603037489,0.0450655,163.67,163.64,6.15038218]
[1748603037986,0.0450655,163.67,163.65,6.1084]
[1748603040490,0.0450655,163.67,163.66,6.1083]
[1748603040692,0.0450655,163.67,163.64,0.04158218]
[1748603040887,0.0450655,163.67,163.65,6.1084]
[1748603041389,0.0450655,163.67,163.64,0.04158218]
[1748603042991,0.0450655,163.67,163.65,6.1084]
[1748603043299,12.2065,163.8,163.64,37.94736497]
[1748603043591,4.0776,163.78,163.67,6.70578279]
[1748603043790,33.278,163.79,163.7,6.70578279]
[1748603043992,31.2,163.79,163.7,6.70578279]
[1748603044191,37.3037,163.79,163.75,6.1047]
[1748603044491,31.23869462,163.79,163.75,6.14661285]
[1748603045485,6.1041,163.78,163.75,0.04191285]
[1748603045784,31.23869462,163.79,163.75,0.04191285]
[1748603045990,6.1046,163.76,163.75,0.04191285]
[1748603046386,2.1065,163.78,163.75,0.04191285]
[1748603046586,6.1046,163.77,163.75,0.04191285]
[1748603046986,2.1065,163.78,163.75,0.04191285]
[1748603047487,6.1046,163.76,163.75,0.04191285]
[1748603051089,4.1093,163.78,163.68,33.1982]
[1748603051789,4.1093,163.78,163.68,39.90398279]
[1748603051989,4.1093,163.78,163.71,0.04540581]
[1748603052182,0.04082034,163.75,163.71,0.04540581]
[1748603052891,6.1053,163.74,163.71,0.04540581]
[1748603054890,0.04082034,163.75,163.71,0.04540581]
[1748603055199,31.10082034,163.75,163.71,0.04540581]
[1748603055798,6.1061,163.72,163.71,0.04540581]
[1748603056295,6.1061,163.73,163.71,0.04540581]
[1748603056699,31.10082034,163.75,163.71,0.04540581]
[1748603057791,6.1061,163.72,163.71,0.04540581]
[1748603058988,6.1074,163.69,163.65,37.1686]
[1748603059697,31.06,163.71,163.61,4.034]
[1748603059893,6.70578279,163.74,163.61,4.034]
[1748603059894,33.1216,163.7,163.61,4.034]
[1748603060093,6.15157083,163.67,163.64,0.04659561]
[1748603060498,0.04347083,163.67,163.64,0.04659561]
[1748603060801,6.1087,163.65,163.64,0.04659561]
[1748603071510,0.04347083,163.67,163.64,0.04659561]
[1748603071814,0.04347083,163.67,163.66,6.1083]
[1748603075315,0.04347083,163.67,163.64,0.04659561]
[1748603076410,0.04347083,163.67,163.66,6.1083]
[1748603081720,6.1059,163.73,163.7,6.1065]
[1748603082311,6.1061,163.72,163.69,6.107]
[1748603082713,6.14603536,163.72,163.69,6.15214868]
[1748603083319,6.1065,163.71,163.69,0.04514868]
[1748603083518,0.03993536,163.72,163.69,0.04514868]
[1748603083920,6.1068,163.7,163.69,0.04514868]
[1748603092322,6.1067,163.71,163.69,0.04514868]
[1748603093332,0.03993536,163.72,163.69,0.04514868]
[1748603095125,6.1067,163.71,163.69,0.04514868]
[1748603095324,0.03993536,163.72,163.69,0.04514868]
[1748603095620,6.14603536,163.72,163.69,6.15214868]
[1748603096932,6.1065,163.71,163.69,6.15214868]
[1748603097422,0.03993536,163.72,163.69,6.15214868]
[1748603097733,6.14623536,163.72,163.69,6.15214868]
[1748603099728,0.03993536,163.72,163.7,6.1068]
[1748603100732,6.14633536,163.72,163.69,6.15224868]
[1748603102533,6.1065,163.71,163.69,6.15224868]
[1748603102832,0.03993536,163.72,163.69,6.15224868]
[1748603103031,0.03993536,163.72,163.69,0.04514868]
[1748603103225,6.1068,163.7,163.69,0.04514868]
[1748603106437,0.03993536,163.72,163.69,0.04514868]
[1748603106630,0.03993536,163.72,163.7,6.1068]
[1748603107637,0.03993536,163.72,163.69,6.15224868]
[1748603109135,6.14613536,163.72,163.7,6.1068]
[1748603109436,0.03993536,163.72,163.69,0.04514868]
[1748603110436,0.03993536,163.72,163.71,6.1065]
[1748603111437,0.03993536,163.72,163.7,6.1067]
[1748603112138,6.14603536,163.72,163.69,6.15224868]
[1748603112341,6.14603536,163.72,163.69,0.04514868]
[1748603114043,6.14603536,163.72,163.7,6.1068]
[1748603114643,6.14603536,163.72,163.69,6.15214868]
[1748603115937,0.03993536,163.72,163.69,0.04514868]
[1748603117133,6.1069,163.7,163.69,0.04514868]
[1748603126945,0.03993536,163.72,163.69,0.04514868]
[1748603127648,0.03993536,163.72,163.71,6.1065]
[1748603128441,31.18,163.78,163.7,156.82578279]
[1748603128839,37.2841,163.78,163.7,156.82578279]
[1748603129144,6.1041,163.78,163.75,6.1047]
[1748603129548,6.14670709,163.78,163.75,6.14887629]
[1748603130348,6.14670709,163.78,163.76,6.1046]
[1748603131745,0.04260709,163.78,163.77,6.1043]
[1748603133254,0.04260709,163.78,163.75,0.04417629]
[1748603134053,0.04260709,163.78,163.76,6.1045]
[1748603135954,0.04260709,163.78,163.75,0.04417629]
[1748603136358,6.1045,163.77,163.75,0.04417629]
[1748603136557,0.04260709,163.78,163.75,0.04417629]
[1748603136856,0.04260709,163.78,163.77,6.1043]
[1748603148757,0.04260709,163.78,163.76,6.1045]
[1748603149558,0.04260709,163.78,163.77,6.1043]
[1748603150462,0.04260709,163.78,163.76,6.1045]
[1748603151869,0.04260709,163.78,163.75,6.14907629]
[1748603152168,0.04260709,163.78,163.75,0.04417629]
[1748603152360,0.04260709,163.78,163.76,6.1045]
[1748603153664,6.14650709,163.78,163.76,6.1045]
[1748603153864,6.14650709,163.78,163.75,6.14897629]
[1748603154059,0.04260709,163.78,163.75,6.14897629]
[1748603154259,6.1043,163.77,163.75,0.04417629]
[1748603154979,6.1046,163.76,163.75,0.04417629]
[1748603155379,0.04260709,163.78,163.75,6.14917629]
[1748603155577,6.1045,163.77,163.75,0.04417629]
[1748603157180,6.1046,163.76,163.75,0.04417629]
[1748603159272,6.1055,163.74,163.72,6.1059]
[1748603159477,6.0294,163.78,163.71,6.1065]
[1748603160080,6.106,163.73,163.7,6.1067]
[1748603160281,6.14564484,163.73,163.7,6.14686233]
[1748603161176,6.14564484,163.73,163.71,6.1064]
[1748603161385,0.03964484,163.73,163.71,6.1064]
[1748603161585,0.03964484,163.73,163.7,0.04016233]
[1748603162482,0.03964484,163.73,163.72,6.1061]
[1748603165679,30.92,163.79,163.76,6.1044]
[1748603165890,37.0237,163.79,163.7,6.70578279]
[1748603166384,6.1037,163.79,163.7,6.70578279]
[1748603166582,6.1033,163.8,163.77,6.104]
[1748603166783,0.04537958,163.8,163.77,0.03991751]
[1748603167087,0.04537958,163.8,163.78,6.1039]
[1748603168082,6.14857958,163.8,163.78,6.1039]
[1748603168587,0.04537958,163.8,163.78,6.1039]
[1748603169087,0.04537958,163.8,163.79,6.1035]
[1748603169488,0.04537958,163.8,163.78,6.1037]
[1748603170490,0.04537958,163.8,163.77,6.14411751]
[1748603174086,6.14857958,163.8,163.77,0.03991751]
[1748603175591,6.1035,163.79,163.77,0.03991751]
[1748603176282,6.14867958,163.8,163.77,0.03991751]
[1748603176691,0.04537958,163.8,163.77,0.03991751]
[1748603176885,6.1038,163.79,163.77,0.03991751]
[1748603177692,6.1039,163.78,163.77,0.03991751]
[1748603185700,6.1036,163.79,163.77,0.03991751]
[1748603186397,0.04537958,163.8,163.77,0.03991751]
[1748603187497,0.04537958,163.8,163.77,6.14391751]
[1748603187696,0.04537958,163.8,163.77,0.03991751]
[1748603188203,0.04537958,163.8,163.78,6.1036]
[1748603189390,0.04537958,163.8,163.77,6.14391751]
[1748603189606,0.04537958,163.8,163.77,0.03991751]
[1748603189999,0.04537958,163.8,163.78,6.1036]
[1748603191601,0.04537958,163.8,163.77,6.14411751]
[1748603191800,0.04537958,163.8,163.77,0.03991751]
[1748603192304,6.14857958,163.8,163.77,0.03991751]
[1748603193201,0.04537958,163.8,163.77,0.03991751]
[1748603193395,0.04537958,163.8,163.77,6.14401751]
[1748603194502,0.04537958,163.8,163.77,0.03991751]
[1748603194901,0.04537958,163.8,163.77,6.14401751]
[1748603195805,6.1035,163.79,163.77,0.03991751]
[1748603196005,0.04537958,163.8,163.77,0.03991751]
[1748603196506,6.14867958,163.8,163.77,0.03991751]
[1748603196905,6.14867958,163.8,163.77,6.14411751]
[1748603197102,6.1035,163.79,163.77,0.03991751]
[1748603198205,6.14867958,163.8,163.77,6.14401751]
[1748603198400,0.04537958,163.8,163.77,0.03991751]
[1748603198803,6.14857958,163.8,163.77,6.14401751]
[1748603199802,0.04537958,163.8,163.77,0.03991751]
[1748603200506,0.04537958,163.8,163.79,6.1035]
[1748603201507,0.04537958,163.8,163.78,6.1036]
[1748603202809,0.04537958,163.8,163.79,6.1034]
[1748603211408,0.04537958,163.8,163.79,124.9034]
[1748603211614,0.04537958,163.8,163.79,118.8]
[1748603211814,0.04537958,163.8,163.77,0.03991751]
[1748603212119,6.1038,163.79,163.77,0.03991751]
[1748603212519,0.04537958,163.8,163.77,0.03991751]
[1748603212820,6.1038,163.78,163.77,0.03991751]
[1748603214322,6.1037,163.79,163.77,0.03991751]
[1748603215519,6.1037,163.79,163.77,6.14411751]
[1748603217020,6.14857958,163.8,163.77,6.14411751]
[1748603217216,0.04537958,163.8,163.79,6.1035]
[1748603217418,0.04537958,163.8,163.77,0.03991751]
[1748603217823,0.04537958,163.8,163.78,6.1037]
[1748603220127,0.04537958,163.8,163.79,6.1035]
[1748603222028,0.04537958,163.8,163.78,6.1035]
[1748603222327,0.04537958,163.8,163.77,0.03991751]
[1748603223229,0.04537958,163.8,163.78,6.1036]
[1748603224027,0.04537958,163.8,163.79,6.1035]
[1748603226331,31.0,163.84,163.81,6.1024]
[1748603226532,31.0,163.87,163.81,6.1024]
[1748603226834,6.1019,163.84,163.81,6.1024]
[1748603227330,6.1019,163.84,163.81,6.14283681]
[1748603227527,6.1021,163.83,163.81,0.04043681]
[1748603229636,6.1017,163.84,163.81,6.14293681]
[1748603230227,6.102,163.83,163.81,0.04043681]
[1748603233536,6.1024,163.82,163.81,0.04043681]
[1748603235946,30.9,163.83,163.75,210.10903781]
[1748603236138,30.9,163.83,163.75,328.76903781]
[1748603236343,6.2901,163.82,163.75,328.76903781]
[1748603236748,6.1045,163.77,163.75,328.76903781]
[1748603237048,6.2901,163.82,163.75,328.76903781]
[1748603237049,0.04076229,163.78,163.75,328.76903781]
[1748603237244,6.14496229,163.78,163.75,118.66]
[1748603237453,0.04076229,163.78,163.75,118.66]
[1748603237851,6.1026,163.82,163.77,6.70578279]
[1748603238043,6.1026,163.82,163.78,30.9]
[1748603238556,6.1022,163.83,163.78,30.9]
[1748603238950,6.1022,163.83,163.79,0.04434499]
[1748603239153,6.1024,163.82,163.79,0.04434499]
[1748603239648,6.1024,163.82,163.79,6.14764499]
[1748603240450,6.1022,163.83,163.8,6.1031]
[1748603241951,6.1024,163.82,163.79,6.14774499]
[1748603242545,6.1024,163.82,163.8,6.1031]
[1748603243555,6.1021,163.83,163.8,6.1031]
[1748603244056,6.1026,163.82,163.79,6.14764499]
[1748603245455,6.1026,163.82,163.8,6.1031]
[1748603246052,6.1026,163.82,163.79,6.14764499]
[1748603246250,6.1026,163.82,163.79,0.04434499]
[1748603246956,6.1022,163.83,163.8,6.1031]
[1748603247356,30.9,163.86,163.8,6.1031]
[1748603248155,6.1023,163.83,163.81,6.1028]
[1748603249355,6.1023,163.83,163.8,6.103]
[1748603249554,30.9,163.86,163.8,6.103]
[1748603249955,6.1023,163.83,163.8,6.103]
[1748603251060,6.1024,163.82,163.8,6.103]
[1748603251957,6.1022,163.83,163.81,6.1027]
[1748603252262,30.9,163.86,163.81,6.1027]
[1748603252559,6.102,163.84,163.81,6.1027]
[1748603252757,6.102,163.84,163.82,6.1023]
[1748603252961,4.1365,163.9,163.82,30.9]
[1748603253158,4.1365,163.9,163.84,0.04499429]
[1748603253749,4.1365,163.9,163.84,6.14639429]
[1748603253951,4.1365,163.9,163.84,0.04499429]
[1748603254858,6.1013,163.85,163.84,0.04499429]
[1748603256657,6.1011,163.86,163.84,0.04499429]
[1748603260467,6.1011,163.86,163.84,6.14659429]
[1748603260662,6.1011,163.86,163.84,0.04499429]
[1748603260862,4.1365,163.9,163.84,0.04499429]
[1748603261061,4.1365,163.9,163.85,6.1012]
[1748603261860,4.1365,163.9,163.84,0.04499429]
[1748603262158,10.2361,163.9,163.84,0.04499429]
[1748603262354,4.1365,163.9,163.84,0.04499429]
[1748603262666,6.0999,163.89,163.84,0.04499429]
[1748603262866,6.0999,163.89,163.86,6.1007]
[1748603263167,4.1365,163.9,163.86,6.1007]
[1748603263562,6.0999,163.89,163.86,6.1007]
[1748603263866,4.1365,163.9,163.85,6.1011]
[1748603264168,6.1004,163.88,163.85,6.1012]
[1748603264368,4.1365,163.9,163.84,0.04499429]
[1748603264665,6.1,163.89,163.86,6.1006]
[1748603265263,6.1002,163.88,163.86,6.1006]
[1748603265661,4.1365,163.9,163.85,6.1012]
[1748603266257,6.1007,163.87,163.84,6.14649429]
[1748603266766,6.1007,163.87,163.85,6.1012]
[1748603269371,6.1004,163.88,163.86,6.1008]
[1748603270971,4.1365,163.9,163.87,6.1005]
[1748603271479,10.2362,163.9,163.87,6.1005]
[1748603272067,6.0998,163.89,163.87,6.1005]
[1748603273975,6.1002,163.88,163.86,6.1008]
[1748603274172,4.1365,163.9,163.86,6.1008]
[1748603274672,6.1001,163.89,163.86,6.1008]
[1748603275676,6.1001,163.89,163.87,6.1005]
[1748603275977,4.1365,163.9,163.84,0.04499429]
[1748603276278,4.1365,163.9,163.86,6.1008]
[1748603276576,6.1001,163.89,163.86,6.1008]
[1748603276876,6.1001,163.89,163.84,0.04499429]
[1748603277075,6.1013,163.85,163.84,0.04499429]
[1748603277275,4.107,163.9,163.84,0.04499429]
[1748603277772,4.107,163.9,163.84,6.14659429]
[1748603277977,8.39556451,163.9,163.84,0.04499429]
[1748603278178,6.1013,163.85,163.84,0.04499429]
[1748603278474,4.107,163.9,163.84,0.04499429]
[1748603278475,8.39556451,163.9,163.84,0.04499429]
[1748603278876,8.39556451,163.9,163.84,6.14649429]
[1748603279479,6.1008,163.87,163.84,6.14649429]
[1748603279678,6.1008,163.87,163.85,6.1011]
[1748603280379,6.1008,163.87,163.84,6.14649429]
[1748603280776,6.1008,163.87,163.84,0.04499429]
[1748603281081,6.1008,163.87,163.85,6.1011]
[1748603281680,6.1008,163.87,163.84,6.14649429]
[1748603281874,4.107,163.9,163.84,0.04499429]
[1748603283170,6.1013,163.85,163.84,0.04499429]
[1748603285879,6.101,163.86,163.84,0.04499429]
[1748603286079,30.88,163.87,163.84,0.04499429]
[1748603286580,36.9809,163.87,163.84,0.04499429]
[1748603286781,4.107,163.9,163.85,6.101]
[1748603286978,34.987,163.9,163.84,0.04499429]
[1748603287580,34.987,163.9,163.85,6.1011]
[1748603288080,34.987,163.9,163.84,0.04499429]
[1748603289085,6.1013,163.85,163.84,0.04499429]
[1748603291288,6.1007,163.87,163.84,0.04499429]
[1748603291487,34.987,163.9,163.84,0.04499429]
[1748603291688,30.88,163.9,163.84,0.04499429]
[1748603291879,6.1,163.89,163.86,6.1007]
[1748603292979,36.9796,163.9,163.87,6.1006]
[1748603293585,30.88,163.93,163.84,0.04499429]
[1748603293887,30.88,163.93,163.87,0.0450256]
[1748603294076,6.0997,163.9,163.87,6.1453256]
[1748603294481,30.88,163.93,163.87,0.0450256]
[1748603295492,6.1001,163.89,163.87,0.0450256]
[1748603296492,30.88,163.93,163.87,0.0450256]
[1748603296996,6.1,163.89,163.87,0.0450256]
[1748603297489,30.88,163.93,163.87,0.0450256]
[1748603298089,6.0996,163.9,163.87,0.0450256]
[1748603299987,6.0996,163.9,163.88,6.1001]
[1748603300188,30.88,163.93,163.87,0.0450256]
[1748603301089,6.0991,163.91,163.89,6.0996]
[1748603303296,30.88,163.93,163.87,0.0450256]
[1748603304190,6.0985,163.93,163.87,0.0450256]
[1748603305294,6.0985,163.93,163.9,6.0992]
[1748603305598,6.098,163.94,163.87,0.0450256]
[1748603305798,37.0408,163.96,163.87,0.0450256]
[1748603306500,6.0981,163.94,163.91,6.0988]
[1748603306800,6.0981,163.94,163.91,6.14514796]
[1748603307387,6.0981,163.94,163.92,6.0987]
[1748603308199,6.0981,163.94,163.91,6.14524796]
[1748603309298,6.0977,163.95,163.91,0.04634796]
[1748603309998,30.86,163.96,163.93,6.0981]
[1748603310597,30.86,163.96,163.91,0.04634796]
[1748603310598,36.9574,163.96,163.94,6.0978]
[1748603311097,36.9574,163.96,163.91,0.04634796]
[1748603311299,36.9574,163.96,163.93,6.0982]
[1748603313702,6.0977,163.95,163.93,6.0982]
[1748603314603,36.9574,163.96,163.93,6.0982]
[1748603315098,36.9574,163.96,163.91,0.04634796]
[1748603315499,6.0978,163.95,163.91,0.04634796]
[1748603316201,30.86,163.96,163.91,0.04634796]
[1748603317503,6.0982,163.94,163.91,0.04634796]
[1748603317703,30.86,163.96,163.91,0.04634796]
[1748603318602,30.86,163.99,163.91,6.74662548]
[1748603318897,30.86,163.99,163.91,37.60662548]
[1748603319097,6.0974,163.96,163.92,6.0985]
[1748603319303,30.86,163.99,163.91,37.60662548]
[1748603319800,30.86,163.99,163.92,6.0984]
[1748603320002,30.86,163.99,163.91,30.90634796]
[1748603320301,30.86,163.99,163.91,0.04634796]
[1748603320502,6.2332,163.98,163.91,0.04634796]
[1748603320902,6.0976,163.95,163.92,6.0985]
[1748603321800,6.0973,163.96,163.93,6.0982]
[1748603322000,30.86,163.99,163.93,0.04094076]
[1748603322506,6.0975,163.96,163.93,0.04094076]
[1748603322803,30.86,163.99,163.93,0.04094076]
[1748603323203,6.0973,163.96,163.93,6.13904076]
[1748603324204,30.86,163.99,163.93,0.04094076]
[1748603325008,34.9451,164.02,163.93,0.04094076]
[1748603325308,6.0963,163.99,163.96,6.0971]
[1748603325503,6.0963,163.99,163.96,6.13810711]
[1748603326008,6.0966,163.98,163.96,0.04100711]
[1748603326197,34.9451,164.02,163.96,0.04100711]
[1748603326607,6.0963,163.99,163.96,6.13810711]
[1748603326808,34.9451,164.02,163.96,0.04100711]
[1748603327108,6.0963,163.99,163.96,6.13810711]
[1748603327703,6.0965,163.98,163.96,0.04100711]
[1748603327902,34.9451,164.02,163.96,0.04100711]
[1748603328304,6.096,164.0,163.97,6.0966]
[1748603330808,6.0962,163.99,163.97,6.0966]
[1748603331111,34.9451,164.02,163.96,0.04100711]
[1748603331306,6.0967,163.98,163.96,0.04100711]
[1748603331810,6.0959,164.0,163.96,0.04100711]
[1748603332109,6.0959,164.0,163.97,6.0966]
[1748603332315,6.0959,164.0,163.96,0.04100711]
[1748603332501,36.935,164.02,163.96,0.04100711]
[1748603332805,30.84,164.02,163.96,0.04100711]
[1748603333211,30.84,164.02,163.98,6.0963]
[1748603333709,6.0958,164.0,163.98,6.0963]
[1748603334110,30.84,164.02,163.96,10.41933917]
[1748603334303,4.28133206,164.01,163.96,6.13800711]
[1748603334704,6.0966,163.98,163.96,6.13800711]
[1748603335912,6.0969,163.97,163.96,0.04100711]
[1748603336117,30.84,164.02,163.96,0.04100711]
[1748603336411,6.0967,163.98,163.96,0.04100711]
[1748603337009,6.0967,163.98,163.96,6.13820711]
[1748603338416,6.0967,163.98,163.96,0.04100711]
[1748603339419,6.0963,163.99,163.96,6.13800711]
[1748603339615,30.84,164.02,163.96,0.04100711]
[1748603340507,6.0969,163.97,163.96,0.04100711]
[1748603342228,6.0987,163.93,163.91,149.36]
[1748603342826,6.0987,163.92,163.91,149.36]
[1748603343528,6.0987,163.92,163.91,30.84]
[1748603343728,6.0987,163.92,163.91,149.36]
[1748603343928,0.04149814,163.93,163.91,149.36]
[1748603344429,0.04149814,163.93,163.91,155.4589]
[1748603345032,6.13989814,163.93,163.91,36.9389]
[1748603345331,6.13989814,163.93,163.91,155.4589]
[1748603345532,6.13989814,163.93,163.91,149.36]
[1748603345726,0.04149814,163.93,163.91,149.36]
[1748603345923,0.04149814,163.93,163.92,6.0987]
[1748603346322,6.0963,163.99,163.92,6.6911309]
[1748603346524,32.975,164.04,163.96,6.097]
[1748603346525,34.9802,164.04,163.96,6.097]
[1748603346926,6.0959,164.0,163.96,6.097]
[1748603347121,6.0959,164.0,163.97,6.0966]
[1748603347331,6.0959,164.0,163.92,8.8273309]
[1748603347630,6.0953,164.02,163.99,6.0958]
[1748603348324,6.0953,164.02,164.0,6.0957]
[1748603349931,6.0953,164.02,163.99,6.0961]